fUSD/lending_fUSD_20250119
["ID","MTS","AMOUNT","RATE_DAILY","PERIOD"]
[349617340,1737329453026,-500.0,0.00021115,2]
[349617342,1737329453042,-500.0,0.00021115,2]
[349617344,1737329453051,-500.0,0.00021115,2]
[349617346,1737329453061,-352.57404086,0.00021115,2]
[349617348,1737329453071,-500.0,0.00021115,2]
[349617350,1737329453082,-500.0,0.00021115,2]
[349617352,1737329453092,-500.0,0.00021115,2]
[349617354,1737329453103,-500.0,0.00021115,2]
[349617356,1737329453113,-500.0,0.00021115,2]
[349617358,1737329453124,-500.0,0.00021115,2]
[349617360,1737329453135,-500.0,0.00021115,2]
[349617362,1737329453146,-500.0,0.00021115,2]
[349617364,1737329453157,-500.0,0.00021115,2]
[349617366,1737329453168,-500.0,0.00021115,2]
[349617368,1737329453178,-527.77458849,0.00021115,2]
[349617381,1737329453310,-500.0,0.00021115,2]
[349617383,1737329453322,-500.0,0.00021115,2]
[349617385,1737329453332,-500.0,0.00021115,2]
[349617387,1737329453342,-500.0,0.00021115,2]
[349617389,1737329453351,-500.0,0.00021115,2]
[349617391,1737329453362,-500.0,0.00021115,2]
[349617393,1737329453371,-500.0,0.00021115,2]
[349617395,1737329453380,-500.0,0.00021115,2]
[349617397,1737329453390,-500.0,0.00021115,2]
[349617399,1737329453399,-500.0,0.00021115,2]
[349617401,1737329453408,-500.0,0.00021115,2]
[349617403,1737329453418,-318.73326621,0.00021115,2]
[349617405,1737329453428,-500.0,0.00021115,2]
[349617407,1737329453437,-508.73287734,0.00021115,2]
[349617409,1737329453448,-500.0,0.00021115,2]
[349617411,1737329453458,-500.0,0.00021115,2]
[349617413,1737329453467,-500.0,0.00021115,2]
[349617415,1737329453477,-500.0,0.00021115,2]
[349617417,1737329453487,-500.0,0.00021115,2]
[349617419,1737329453496,-2670.61,0.00021115,2]
[349617421,1737329453506,-500.0,0.00021115,2]
[349617423,1737329453515,-500.0,0.00021115,2]
[349617425,1737329453524,-500.0,0.00021115,2]
[349617427,1737329453539,-500.0,0.00021115,2]
[349617429,1737329453548,-500.0,0.00021115,2]
[349617431,1737329453557,-500.0,0.00021115,2]
[349617433,1737329453569,-500.0,0.00021115,2]
[349617435,1737329453579,-500.0,0.00021115,2]
[349617437,1737329453589,-500.0,0.00021115,2]
[349617439,1737329453598,-500.0,0.00021115,2]
[349617441,1737329453608,-500.0,0.00021115,2]
[349617443,1737329453618,-500.0,0.00021115,2]
[349617445,1737329453628,-523.1,0.00021115,2]
[349617447,1737329453637,-1292.83,0.00021115,2]
[349617449,1737329453648,-500.0,0.00021115,2]
[349617451,1737329453657,-1387.11,0.00021115,2]
[349617453,1737329453667,-500.0,0.00021115,2]
[349617455,1737329453678,-500.0,0.00021115,2]
[349617457,1737329453688,-500.0,0.00021115,2]
[349617459,1737329453698,-500.0,0.00021115,2]
[349617462,1737329453708,-500.0,0.00021115,2]
[349617464,1737329453718,-500.0,0.00021115,2]
[349617465,1737329453727,-500.0,0.00021115,2]
[349617468,1737329453737,-500.0,0.00021115,2]
[349617469,1737329453747,-500.0,0.00021115,2]
[349617472,1737329453756,-564.2,0.00021115,2]
[349617473,1737329453765,-500.0,0.00021115,2]
[349617476,1737329453775,-500.0,0.00021115,2]
[349617477,1737329453791,-500.0,0.00021115,2]
[349617479,1737329453801,-500.0,0.00021115,2]
[349617481,1737329453811,-500.0,0.00021115,2]
[349617483,1737329453821,-500.0,0.00021115,2]
[349617485,1737329453831,-500.0,0.00021115,2]
[349617486,1737329453841,-310.80280176,0.00021115,2]
[349617487,1737329453855,-189.19719824,0.00021115,2]
[349617488,1737329453864,-500.0,0.00021115,2]
[349617489,1737329453875,-500.0,0.00021115,2]
[349617490,1737329453884,-500.0,0.00021115,2]
[349617491,1737329453895,-500.0,0.00021115,2]
[349617492,1737329453904,-500.0,0.00021115,2]
[349617493,1737329453914,-500.0,0.00021115,2]
[349617494,1737329453923,-500.0,0.00021115,2]
[349617495,1737329453932,-500.0,0.00021115,2]
[349617496,1737329453941,-43.72783202,0.00021115,2]
[349617497,1737329453953,-456.27216798,0.00021115,2]
[349617498,1737329453963,-500.0,0.00021115,2]
[349617499,1737329453972,-500.0,0.00021115,2]
[349617500,1737329453982,-430.21552245,0.00021115,2]
[349617501,1737329453998,-69.78447755,0.00021115,2]
[349617502,1737329454007,-259.79819899,0.00021115,2]
[349617503,1737329454039,-500.0,0.00020787,2]
[349617504,1737329454049,-240.20180101,0.00021115,2]
[349617505,1737329454062,-500.0,0.00021115,2]
[349617506,1737329454073,-500.0,0.00021115,2]
[349617507,1737329454084,-613.51,0.00021115,2]
[349617508,1737329454093,-500.0,0.00021115,2]
[349617509,1737329454104,-500.0,0.00021115,2]
[349617510,1737329454115,-500.0,0.00021115,2]
[349617511,1737329454124,-500.0,0.00021115,2]
[349617512,1737329454134,-500.0,0.00021115,2]
[349617513,1737329454144,-500.0,0.00021115,2]
[349617514,1737329454154,-500.0,0.00021115,2]
[349617515,1737329454163,-500.0,0.00021115,2]
[349617516,1737329454172,-500.0,0.00021115,2]
[349617517,1737329454182,-500.0,0.00021115,2]
[349617518,1737329454191,-500.0,0.00021115,2]
[349617519,1737329454201,-394.23069145,0.00021115,2]
[349617520,1737329454210,-500.0,0.00021115,2]
[349617521,1737329454220,-500.0,0.00021115,2]
[349617522,1737329454235,-500.0,0.00021115,2]
[349617523,1737329454244,-500.0,0.00021115,2]
[349617524,1737329454253,-511.51401645,0.00021115,2]
[349617525,1737329454262,-500.0,0.00021115,2]
[349617526,1737329454273,-500.0,0.00021115,2]
[349617527,1737329454284,-500.0,0.00021115,2]
[349617528,1737329454294,-500.0,0.00021115,2]
[349617529,1737329454303,-505.06424015,0.00021115,2]
[349617530,1737329454313,-500.0,0.00021115,2]
[349617531,1737329454323,-500.0,0.00021115,2]
[349617532,1737329454332,-500.0,0.00021115,2]
[349617534,1737329454341,-500.0,0.00021115,2]
[349617536,1737329454350,-500.0,0.00021115,2]
[349617538,1737329454360,-500.0,0.00021115,2]
[349617540,1737329454369,-500.0,0.00021115,2]
[349617542,1737329454379,-500.0,0.00021115,2]
[349617544,1737329454388,-500.0,0.00021115,2]
[349617546,1737329454398,-500.0,0.00021116,2]
[349617548,1737329454407,-500.0,0.00021116,2]
[349617550,1737329454417,-500.0,0.00021116,2]
[349617552,1737329454426,-500.0,0.00021116,2]
[349617554,1737329454436,-500.0,0.00021116,2]
[349617556,1737329454445,-500.0,0.00021116,2]
[349617558,1737329454454,-500.0,0.00021116,2]
[349617560,1737329454463,-500.0,0.00021116,2]
[349617562,1737329454471,-500.0,0.00021116,2]
[349617564,1737329454480,-500.0,0.00021116,2]
[349617566,1737329454490,-500.0,0.00021116,2]
[349617568,1737329454499,-500.0,0.00021116,2]
[349617570,1737329454509,-500.0,0.00021116,2]
[349617572,1737329454517,-547.49822178,0.00021116,2]
[349617574,1737329454527,-500.0,0.00021116,2]
[349617576,1737329454542,-500.0,0.00021116,2]
[349617578,1737329454551,-500.0,0.00021116,2]
[349617580,1737329454560,-500.0,0.00021116,2]
[349617582,1737329454570,-500.0,0.00021116,2]
[349617584,1737329454579,-300.0,0.00021116,2]
[349617586,1737329454590,-500.0,0.00021116,2]
[349617588,1737329454599,-500.0,0.00021116,2]
[349617590,1737329454608,-500.0,0.00021116,2]
[349617592,1737329454617,-500.0,0.00021116,2]
[349617593,1737329454626,-500.0,0.00021116,2]
[349617595,1737329454635,-500.0,0.00021116,2]
[349617597,1737329454644,-514.09639718,0.00021116,2]
[349617599,1737329454653,-516.69188497,0.00021116,2]
[349617601,1737329454662,-500.0,0.00021116,2]
[349617603,1737329454671,-500.0,0.00021116,2]
[349617605,1737329454681,-500.0,0.00021116,2]
[349617607,1737329454690,-500.0,0.00021116,2]
[349617609,1737329454699,-500.0,0.00021116,2]
[349617611,1737329454709,-500.0,0.00021116,2]
[349617613,1737329454718,-500.0,0.00021116,2]
[349617615,1737329454727,-500.0,0.00021116,2]
[349617617,1737329454735,-500.0,0.00021117,2]
[349617619,1737329454746,-500.0,0.00021117,2]
[349617621,1737329454755,-500.0,0.00021117,2]
[349617623,1737329454764,-500.0,0.00021117,2]
[349617625,1737329454773,-504.22257209,0.00021117,2]
[349617627,1737329454787,-500.0,0.00021117,2]
[349617629,1737329454796,-500.0,0.00021117,2]
[349617631,1737329454805,-1000.0,0.00021121,2]
[349617633,1737329454815,-163.41,0.00021178,2]
[349617635,1737329454824,-437.55,0.00021178,2]
[349617637,1737329454833,-150.0,0.00021178,2]
[349617639,1737329454843,-200.07,0.00021178,2]
[349617641,1737329454852,-150.0,0.00021178,2]
[349617643,1737329454862,-981.04,0.00021178,2]
[349617645,1737329454871,-437.55,0.00021178,2]
[349617647,1737329454882,-437.55,0.00021178,2]
[349617649,1737329454891,-437.55,0.00021178,2]
[349617651,1737329454901,-325.95,0.00021178,2]
[349617653,1737329454910,-3235.06401258,0.0002121,2]
[349617655,1737329454919,-3889.9147889,0.00021241,2]
[349617657,1737329454928,-500.0,0.00021256,2]
[349617659,1737329454937,-678.25,0.00021306,2]
[349617661,1737329454946,-500.0,0.0002131,2]
[349617663,1737329454955,-500.0,0.0002131,2]
[349617665,1737329454964,-500.0,0.0002131,2]
[349617667,1737329454974,-500.0,0.0002131,2]
[349617669,1737329454983,-646.06,0.0002131,2]
[349617671,1737329454993,-2066.0,0.00021315,2]
[349617673,1737329455003,-500.0,0.00021335,2]
[349617675,1737329455012,-2028.99,0.00021335,2]
[349617677,1737329455021,-1481.91,0.00021335,2]
[349617679,1737329455037,-529.44,0.00021335,2]
[349617681,1737329455046,-1048.91,0.00021335,2]
[349617683,1737329455056,-881.61,0.00021335,2]
[349617685,1737329455065,-1546.46,0.00021335,2]
[349617687,1737329455074,-1692.57,0.00021335,2]
[349617689,1737329455084,-500.0,0.00021335,2]
[349617691,1737329455095,-1047.5,0.00021335,2]
[349617693,1737329455104,-500.0,0.00021335,2]
[349617695,1737329455114,-678.12,0.00021335,2]
[349617697,1737329455123,-2853.25224808,0.00021335,2]
[349617699,1737329455136,-21.38775192,0.00021335,2]
[349617701,1737329455146,-912.14,0.00021335,2]
[349617703,1737329455155,-1839.2,0.00021335,2]
[349617705,1737329455164,-500.0,0.00021335,2]
[349617706,1737329455175,-675.7520484,0.00021335,2]
[349617707,1737329455190,-250.0,0.00021335,2]
[349617708,1737329455202,-67.4879516,0.00021335,2]
[349617709,1737329455211,-500.0,0.00021335,2]
[349617710,1737329455220,-288.7670534,0.00021335,2]
[349617712,1737329455234,-494.9629466,0.00021335,2]
[349617714,1737329455243,-895.88,0.00021335,2]
[349617716,1737329455253,-500.0,0.00021335,2]
[349617718,1737329455262,-500.0,0.00021336,2]
[349617720,1737329455276,-500.0,0.00021336,2]
[349617722,1737329455291,-500.0,0.00021336,2]
[349617724,1737329455300,-500.0,0.00021336,2]
[349617726,1737329455310,-503.51,0.00021336,2]
[349617738,1737329455417,-500.0,0.00021336,2]
[349617741,1737329455433,-500.0,0.00021336,2]
[349617743,1737329455444,-500.0,0.00021336,2]
[349617745,1737329455453,-500.0,0.00021336,2]
[349617747,1737329455463,-500.0,0.00021336,2]
[349617748,1737329455473,-500.0,0.00021336,2]
[349617750,1737329455482,-500.0,0.00021336,2]
[349617752,1737329455492,-500.0,0.00021336,2]
[349617754,1737329455502,-506.51225524,0.00021336,2]
[349617757,1737329455512,-500.0,0.00021336,2]
[349617758,1737329455522,-500.0,0.00021336,2]
[349617760,1737329455534,-500.0,0.00021336,2]
[349617762,1737329455543,-500.0,0.00021336,2]
[349617764,1737329455552,-500.0,0.00021336,2]
[349617766,1737329455562,-500.0,0.00021336,2]
[349617768,1737329455573,-500.0,0.00021336,2]
[349617770,1737329455583,-500.0,0.00021336,2]
[349617772,1737329455593,-500.0,0.00021336,2]
[349617774,1737329455604,-500.0,0.00021336,2]
[349617776,1737329455614,-500.0,0.00021336,2]
[349617778,1737329455624,-500.0,0.00021336,2]
[349617780,1737329455633,-500.0,0.00021336,2]
[349617782,1737329455642,-500.0,0.00021336,2]
[349617784,1737329455652,-558.61,0.00021336,2]
[349617786,1737329455661,-500.0,0.00021336,2]
[349617788,1737329455671,-500.0,0.00021336,2]
[349617790,1737329455680,-500.0,0.00021336,2]
[349617793,1737329455690,-500.0,0.00021336,2]
[349617795,1737329455700,-500.0,0.00021336,2]
[349617797,1737329455709,-522.94,0.00021336,2]
[349617799,1737329455718,-500.0,0.00021336,2]
[349617801,1737329455728,-500.0,0.00021336,2]
[349617803,1737329455738,-500.0,0.00021336,2]
[349617805,1737329455748,-500.0,0.00021336,2]
[349617807,1737329455758,-500.0,0.00021336,2]
[349617808,1737329455767,-500.0,0.00021336,2]
[349617810,1737329455777,-500.0,0.00021336,2]
[349617813,1737329455791,-532.25,0.00021336,2]
[349617815,1737329455801,-1531.9,0.00021336,2]
[349617817,1737329455811,-579.86655647,0.00021336,2]
[349617819,1737329455820,-500.0,0.00021336,2]
[349617821,1737329455829,-542.32722654,0.00021336,2]
[349617824,1737329455854,-505.77647964,0.0001994,2]
[349617826,1737329455862,-294.22349036,0.00021061,2]
[349617828,1737329455873,-1561.440015,0.00021061,2]
[349617831,1737329455885,-941.65649464,0.00021061,2]
[349617833,1737329455894,-197.35277346,0.00021336,2]
[349617834,1737329455903,-500.0,0.00021336,2]
[349617837,1737329455913,-518.97,0.00021336,2]
[349617839,1737329455922,-667.03,0.00021336,2]
[349617841,1737329455931,-500.0,0.00021336,2]
[349617843,1737329455940,-542.63129,0.00021336,2]
[349617844,1737329455950,-2536.05,0.00021336,2]
[349617846,1737329455959,-500.0,0.00021336,2]
[349617848,1737329455968,-1170.24,0.00021336,2]
[349617850,1737329455978,-2808.0,0.00021336,2]
[349617852,1737329455987,-500.0,0.00021336,2]
[349617854,1737329455996,-500.0,0.00021336,2]
[349617856,1737329456008,-500.0,0.00021336,2]
[349617858,1737329456018,-648.48829,0.00021336,2]
[349617860,1737329456028,-500.0,0.00021336,2]
[349617862,1737329456042,-500.0,0.00021336,2]
[349617865,1737329456052,-896.3,0.00021336,2]
[349617866,1737329456063,-500.0,0.00021336,2]
[349617869,1737329456073,-500.0,0.00021336,2]
[349617870,1737329456084,-500.0,0.00021336,2]
[349617872,1737329456095,-1124.05,0.00021336,2]
[349617874,1737329456106,-556.15,0.00021336,2]
[349617876,1737329456117,-500.0,0.00021336,2]
[349617878,1737329456126,-500.0,0.00021336,2]
[349617880,1737329456137,-558.8,0.00021336,2]
[349617882,1737329456147,-500.0,0.00021336,2]
[349617884,1737329456158,-2589.86,0.00021336,2]
[349617886,1737329456168,-511.79,0.00021336,2]
[349617888,1737329456178,-798.41,0.00021336,2]
[349617890,1737329456188,-500.0,0.00021336,2]
[349617892,1737329456198,-500.0,0.00021336,2]
[349617894,1737329456208,-633.14,0.00021336,2]
[349617896,1737329456218,-3853.1,0.00021336,2]
[349617897,1737329456231,-758.47,0.00021336,2]
[349617898,1737329456242,-500.0,0.00021336,2]
[349617899,1737329456251,-500.0,0.00021336,2]
[349617900,1737329456261,-984.81,0.00021336,2]
[349617901,1737329456269,-3472.01,0.00021336,2]
[349617903,1737329456291,-500.0,0.00021336,2]
[349617905,1737329456301,-500.0,0.00021336,2]
[349617907,1737329456312,-500.0,0.00021336,2]
[349617909,1737329456323,-151.0,0.00021336,2]
[349617911,1737329456334,-1237.2,0.00021336,2]
[349617913,1737329456344,-500.0,0.00021336,2]
[349617915,1737329456355,-500.0,0.00021336,2]
[349617917,1737329456365,-1576.81,0.00021336,2]
[349617919,1737329456375,-151.0,0.00021336,2]
[349617921,1737329456385,-450.33,0.00021337,2]
[349617924,1737329456395,-632.16,0.00021337,2]
[349617926,1737329456405,-500.0,0.00021337,2]
[349617928,1737329456416,-238.87,0.00021337,2]
[349617930,1737329456428,-500.0,0.00021337,2]
[349617932,1737329456443,-500.0,0.00021337,2]
[349617934,1737329456456,-500.0,0.00021337,2]
[349617935,1737329456466,-185.69,0.00021337,2]
[349617937,1737329456475,-500.0,0.00021337,2]
[349617940,1737329456484,-500.0,0.00021337,2]
[349617941,1737329456494,-500.0,0.00021337,2]
[349617943,1737329456503,-500.0,0.00021337,2]
[349617945,1737329456513,-286.59,0.00021337,2]
[349617947,1737329456523,-569.06,0.00021337,2]
[349617949,1737329456541,-187.04825775,0.00021337,2]
[349617952,1737329456551,-401.93,0.00021337,2]
[349617954,1737329456561,-210.81,0.00021337,2]
[349617956,1737329456571,-321.79,0.00021337,2]
[349617957,1737329456580,-500.0,0.00021337,2]
[349617960,1737329456590,-500.0,0.00021337,2]
[349617962,1737329456599,-500.0,0.00021337,2]
[349617964,1737329456610,-500.0,0.00021337,2]
[349617966,1737329456621,-500.0,0.00021337,2]
[349617967,1737329456630,-339.8,0.00021337,2]
[349617970,1737329456640,-396.72193963,0.00021337,2]
[349617971,1737329456649,-500.0,0.00021337,2]
[349617973,1737329456658,-500.0,0.00021337,2]
[349617975,1737329456668,-500.0,0.00021337,2]
[349617977,1737329456678,-500.0,0.00021337,2]
[349617979,1737329456688,-500.0,0.00021337,2]
[349617981,1737329456697,-551.64,0.00021337,2]
[349617983,1737329456707,-3235.06401258,0.00021348,2]
[349617986,1737329456717,-500.0,0.00021388,2]
[349617988,1737329456726,-632.37281664,0.00021388,2]
[349617989,1737329456735,-500.0,0.00021388,2]
[349617991,1737329456745,-500.0,0.00021388,2]
[349617993,1737329456754,-569.27,0.00021388,2]
[349617995,1737329456764,-500.0,0.00021388,2]
[349617996,1737329456774,-500.0,0.00021388,2]
[349617998,1737329456792,-500.0,0.00021388,2]
[349618000,1737329456802,-500.0,0.00021388,2]
[349618001,1737329456812,-500.0,0.00021388,2]
[349618002,1737329456822,-500.0,0.00021388,2]
[349618004,1737329456832,-500.0,0.00021388,2]
[349618005,1737329456841,-500.0,0.00021388,2]
[349618007,1737329456851,-500.0,0.00021388,2]
[349618009,1737329456860,-500.0,0.00021388,2]
[349618010,1737329456870,-500.0,0.00021388,2]
[349618012,1737329456879,-500.0,0.00021388,2]
[349618013,1737329456889,-500.0,0.00021388,2]
[349618015,1737329456898,-500.0,0.00021388,2]
[349618016,1737329456908,-500.0,0.00021388,2]
[349618018,1737329456918,-500.0,0.00021388,2]
[349618020,1737329456927,-500.0,0.00021388,2]
[349618021,1737329456937,-500.0,0.00021388,2]
[349618022,1737329456946,-500.0,0.00021388,2]
[349618024,1737329456955,-442.26581903,0.00021388,2]
[349618026,1737329456964,-387.9822189,0.00021388,2]
[349618027,1737329456974,-500.0,0.00021388,2]
[349618029,1737329456984,-500.0,0.00021388,2]
[349618030,1737329456994,-500.0,0.00021388,2]
[349618032,1737329457003,-500.0,0.00021388,2]
[349618033,1737329457012,-500.0,0.00021388,2]
[349618035,1737329457022,-500.0,0.00021388,2]
[349618037,1737329457038,-500.0,0.00021388,2]
[349618038,1737329457048,-500.0,0.00021388,2]
[349618040,1737329457058,-500.0,0.00021388,2]
[349618042,1737329457067,-500.0,0.00021388,2]
[349618043,1737329457076,-923.42,0.00021388,2]
[349618045,1737329457085,-510.0116926,0.00021388,2]
[349618046,1737329457094,-564.73,0.00021388,2]
[349618048,1737329457103,-500.0,0.00021388,2]
[349618050,1737329457112,-500.0,0.00021388,2]
[349618051,1737329457122,-559.32831492,0.00021388,2]
[349618053,1737329457131,-508.31,0.00021388,2]
[349618054,1737329457140,-500.0,0.00021388,2]
[349618056,1737329457149,-500.0,0.00021388,2]
[349618058,1737329457158,-601.59,0.00021388,2]
[349618059,1737329457167,-500.0,0.00021388,2]
[349618061,1737329457176,-500.0,0.00021388,2]
[349618063,1737329457186,-564.0,0.00021388,2]
[349618064,1737329457195,-500.0,0.00021388,2]
[349618066,1737329457204,-813.74,0.00021388,2]
[349618068,1737329457214,-500.0,0.00021388,2]
[349618069,1737329457223,-663.42,0.00021388,2]
[349618071,1737329457236,-500.0,0.00021388,2]
[349618073,1737329457245,-500.0,0.00021389,2]
[349618074,1737329457254,-500.0,0.00021389,2]
[349618076,1737329457263,-500.0,0.00021389,2]
[349618078,1737329457272,-500.0,0.00021389,2]
[349618080,1737329457288,-500.0,0.00021389,2]
[349618082,1737329457297,-500.0,0.00021389,2]
[349618084,1737329457307,-500.0,0.00021389,2]
[349618086,1737329457316,-500.0,0.00021389,2]
[349618096,1737329457428,-500.0,0.00021389,2]
[349618097,1737329457439,-500.0,0.00021389,2]
[349618098,1737329457449,-500.0,0.00021389,2]
[349618099,1737329457460,-500.0,0.00021389,2]
[349618100,1737329457470,-500.0,0.00021389,2]
[349618101,1737329457479,-500.0,0.00021389,2]
[349618102,1737329457489,-500.0,0.00021389,2]
[349618103,1737329457499,-500.0,0.00021389,2]
[349618104,1737329457508,-512.78863594,0.00021389,2]
[349618105,1737329457517,-500.0,0.00021389,2]
[349618106,1737329457526,-500.0,0.00021389,2]
[349618107,1737329457541,-500.0,0.00021389,2]
[349618108,1737329457550,-500.0,0.00021389,2]
[349618109,1737329457559,-500.0,0.00021389,2]
[349618111,1737329457570,-500.0,0.00021389,2]
[349618112,1737329457579,-500.0,0.00021389,2]
[349618114,1737329457589,-500.0,0.00021389,2]
[349618116,1737329457599,-500.0,0.00021389,2]
[349618118,1737329457608,-500.0,0.00021389,2]
[349618120,1737329457618,-500.0,0.00021389,2]
[349618122,1737329457627,-411.20366337,0.00021389,2]
[349618124,1737329457637,-500.0,0.00021389,2]
[349618126,1737329457648,-500.0,0.00021389,2]
[349618128,1737329457658,-500.0,0.00021389,2]
[349618130,1737329457667,-500.0,0.00021389,2]
[349618132,1737329457676,-500.0,0.00021389,2]
[349618134,1737329457686,-500.0,0.00021389,2]
[349618136,1737329457695,-500.0,0.00021389,2]
[349618138,1737329457704,-500.0,0.00021389,2]
[349618140,1737329457713,-500.0,0.00021389,2]
[349618142,1737329457722,-500.0,0.00021389,2]
[349618144,1737329457731,-500.0,0.00021389,2]
[349618146,1737329457739,-510.45818505,0.00021389,2]
[349618148,1737329457749,-500.0,0.00021389,2]
[349618150,1737329457759,-500.0,0.00021389,2]
[349618152,1737329457768,-500.0,0.00021389,2]
[349618154,1737329457777,-500.0,0.00021389,2]
[349618156,1737329457790,-511.88060007,0.00021389,2]
[349618158,1737329457799,-500.0,0.00021389,2]
[349618160,1737329457809,-500.0,0.00021389,2]
[349618162,1737329457818,-500.0,0.00021389,2]
[349618164,1737329457828,-506.96300698,0.00021389,2]
[349618166,1737329457838,-500.0,0.00021389,2]
[349618168,1737329457847,-500.0,0.00021389,2]
[349618170,1737329457856,-500.0,0.00021389,2]
[349618172,1737329457866,-500.0,0.00021389,2]
[349618174,1737329457875,-500.0,0.00021389,2]
[349618176,1737329457885,-500.0,0.00021389,2]
[349618178,1737329457894,-500.0,0.00021389,2]
[349618180,1737329457903,-500.0,0.00021389,2]
[349618182,1737329457912,-500.0,0.00021389,2]
[349618184,1737329457922,-500.0,0.00021389,2]
[349618186,1737329457931,-500.0,0.00021389,2]
[349618188,1737329457941,-500.0,0.00021389,2]
[349618190,1737329457950,-500.0,0.00021389,2]
[349618192,1737329457959,-433.99643917,0.00021389,2]
[349618195,1737329457976,-66.00356083,0.00021389,2]
[349618197,1737329457985,-500.0,0.00021389,2]
[349618199,1737329457994,-500.0,0.00021389,2]
[349618201,1737329458004,-500.0,0.00021389,2]
[349618203,1737329458014,-500.0,0.00021389,2]
[349618205,1737329458024,-500.0,0.00021389,2]
[349618207,1737329458038,-500.0,0.00021389,2]
[349618209,1737329458047,-500.0,0.00021389,2]
[349618211,1737329458057,-500.0,0.00021389,2]
[349618213,1737329458066,-500.0,0.00021389,2]
[349618215,1737329458075,-418.47531033,0.00021389,2]
[349618217,1737329458086,-81.52468967,0.00021389,2]
[349618219,1737329458095,-500.0,0.00021389,2]
[349618221,1737329458104,-502.16021359,0.00021389,2]
[349618223,1737329458114,-500.0,0.00021389,2]
[349618225,1737329458123,-500.0,0.00021389,2]
[349618227,1737329458132,-500.0,0.00021389,2]
[349618229,1737329458141,-500.0,0.00021389,2]
[349618231,1737329458151,-500.0,0.00021389,2]
[349618233,1737329458160,-506.19805776,0.00021389,2]
[349618235,1737329458169,-354.09213963,0.00021389,2]
[349618237,1737329458178,-500.0,0.00021389,2]
[349618239,1737329458187,-500.0,0.00021389,2]
[349618241,1737329458197,-501.03422384,0.00021389,2]
[349618243,1737329458206,-233.16889737,0.00021389,2]
[349618245,1737329458216,-500.0,0.00021389,2]
[349618247,1737329458226,-500.0,0.00021389,2]
[349618249,1737329458236,-502.62913333,0.00021389,2]
[349618251,1737329458246,-500.0,0.00021389,2]
[349618253,1737329458255,-313.23489486,0.00021389,2]
[349618256,1737329458272,-186.76510514,0.00021389,2]
[349618258,1737329458287,-104.23489286,0.00021389,2]
[349618260,1737329458299,-395.76510714,0.00021389,2]
[349618262,1737329458309,-500.0,0.00021389,2]
[349618264,1737329458320,-500.0,0.00021389,2]
[349618266,1737329458330,-500.0,0.00021389,2]
[349618268,1737329458339,-500.0,0.00021389,2]
[349618270,1737329458350,-504.62348791,0.00021389,2]
[349618272,1737329458360,-500.0,0.00021389,2]
[349618274,1737329458369,-500.0,0.00021389,2]
[349618276,1737329458379,-500.0,0.00021389,2]
[349618278,1737329458388,-500.0,0.00021389,2]